fUSD/lending_fUSD_20260413
["ID","MTS","AMOUNT","RATE_DAILY","PERIOD"]
[420361271,1776039032084,-1401.96667059,0.00015395,2]
[420361273,1776039032105,-1962.17532822,0.000154,2]
[420361274,1776039032130,-4336.361697,0.00015462,2]
[420361275,1776039032150,-600.0,0.00015481,2]
[420361276,1776039032171,-2500.0,0.00015499,2]
[420361277,1776039032188,-166.66,0.00015555,2]
[420361278,1776039032226,-286.0,0.00015572,2]
[420361279,1776039032247,-500.0,0.00015573,2]
[420361280,1776039032270,-308.57923412,0.00015573,2]
[420361281,1776039032282,-169.73167815,0.00015573,2]
[420361282,1776039032291,-500.0,0.00015573,2]
[420361283,1776039032306,-500.0,0.00015573,2]
[420361284,1776039032331,-500.0,0.00015573,2]
[420361285,1776039032341,-500.0,0.00015573,2]
[420361286,1776039032351,-500.0,0.00015573,2]
[420361287,1776039032372,-246.42680989,0.00015573,2]
[420361288,1776039032382,-500.0,0.00015573,2]
[420361289,1776039032392,-500.0,0.00015573,2]
[420361290,1776039032411,-200.0,0.0001559,2]
[420361291,1776039032420,-500.0,0.0001559,2]
[420361292,1776039032433,-500.0,0.0001559,2]
[420361293,1776039032447,-500.0,0.0001559,2]
[420361294,1776039032456,-500.0,0.0001559,2]
[420361295,1776039032473,-500.0,0.0001559,2]
[420361296,1776039032483,-500.0,0.0001559,2]
[420361297,1776039032501,-495.01548166,0.0001559,2]
[420361298,1776039032511,-151.0,0.0001559,2]
[420361299,1776039032521,-151.0,0.0001559,2]
[420361300,1776039032530,-151.0,0.0001559,2]
[420361301,1776039032543,-151.0,0.0001559,2]
[420361302,1776039032555,-151.0,0.0001559,2]
[420361303,1776039032564,-151.0,0.0001559,2]
[420361304,1776039032573,-151.0,0.0001559,2]
[420361305,1776039032584,-151.0,0.0001559,2]
[420361306,1776039032593,-151.0,0.0001559,2]
[420361307,1776039032604,-151.0,0.0001559,2]
[420361308,1776039032613,-151.0,0.0001559,2]
[420361309,1776039032626,-151.0,0.0001559,2]
[420361310,1776039032635,-151.0,0.0001559,2]
[420361311,1776039032647,-151.0,0.0001559,2]
[420361312,1776039032656,-151.0,0.0001559,2]
[420361313,1776039032683,-151.0,0.0001559,2]
[420361314,1776039032694,-151.0,0.0001559,2]
[420361315,1776039032711,-151.0,0.0001559,2]
[420361316,1776039032721,-151.0,0.0001559,2]
[420361317,1776039032732,-151.0,0.0001559,2]
[420361318,1776039032742,-500.0,0.0001559,2]
[420361319,1776039032760,-500.0,0.0001559,2]
[420361320,1776039032771,-500.0,0.0001559,2]
[420361321,1776039032783,-500.0,0.0001559,2]
[420361322,1776039032805,-151.0,0.0001559,2]
[420361323,1776039032814,-500.0,0.0001559,2]
[420361324,1776039032829,-500.0,0.0001559,2]
[420361325,1776039032844,-500.0,0.0001559,2]
[420361326,1776039032853,-500.0,0.0001559,2]
[420361327,1776039032864,-500.0,0.0001559,2]
[420361328,1776039032887,-500.0,0.0001559,2]
[420361329,1776039032900,-500.0,0.0001559,2]
[420361330,1776039032909,-500.0,0.0001559,2]
[420361331,1776039032945,-500.0,0.0001559,2]
[420361332,1776039032961,-1156.41848617,0.0001559,2]
[420361333,1776039032970,-500.0,0.0001559,2]
[420361334,1776039033003,-590.98252768,0.00015598,2]
[420361335,1776039033015,-2692.027,0.00015598,2]
[420361336,1776039033062,-193.317,0.00015598,2]
[420361337,1776039033072,-500.0,0.00015598,2]
[420361338,1776039033118,-500.0,0.00015598,2]
[420361339,1776039033144,-500.0,0.00015598,2]
[420361340,1776039033154,-500.0,0.00015598,2]
[420361341,1776039033176,-639.89515984,0.00015598,2]
[420361342,1776039033208,-6259.97857614,0.00015599,2]
[420361343,1776039037781,-1898.96099122,0.000155,2]
[420361344,1776039038085,-3212.41532108,0.000155,2]
[420361345,1776039038099,-6865.48139057,0.00015599,2]
[420361346,1776039038115,-12006.29957838,0.00015599,2]
[420361347,1776039038127,-22921.64023375,0.00015599,2]
[420361348,1776039038145,-11459.67674882,0.00015599,2]
[420361349,1776039038159,-638.55537377,0.00015599,2]
[420361350,1776039038191,-224247.12489857,0.00015599,2]
[420361351,1776039038206,-675.0,0.00015599,2]
[420361352,1776039038221,-1467.0,0.00015599,2]
[420361353,1776039038247,-9726.09514785,0.000156,2]
[420361354,1776039038257,-183.03468733,0.0001568,2]
[420361355,1776039038267,-437.61138314,0.00015685,2]
[420361356,1776039038281,-28668.4034,0.00015699,2]
[420361358,1776039038293,-492.51573927,0.000157,2]
[420361360,1776039038302,-1120.54610848,0.000157,2]
[420361362,1776039038312,-311.56115679,0.000157,2]
[420361363,1776039038329,-3400.0,0.000157,5]
[420361364,1776039038338,-160.12954849,0.00015755,2]
[420361365,1776039038349,-5000.0,0.00015793,2]
[420361366,1776039038363,-6800.0,0.000158,5]
[420361367,1776039038385,-546.02787527,0.000158,2]
[420361368,1776039038395,-556.47029852,0.000158,2]
[420361370,1776039038429,-3060.65366294,0.000158,2]
[420361371,1776039038438,-319.18085968,0.00015828,2]
[420361373,1776039038467,-9726.09514783,0.00015856,2]
[420361375,1776039038477,-288.04541729,0.00015873,2]
[420361377,1776039038498,-500.0,0.00015873,2]
[420361379,1776039038522,-189.85056446,0.00015883,2]
[420361381,1776039038531,-500.0,0.00015892,2]
[420361383,1776039038578,-247.84385151,0.00015892,2]
[420361385,1776039038588,-154.87001066,0.00015892,2]
[420361387,1776039038617,-154.87001066,0.00015892,2]
[420361389,1776039038627,-500.0,0.00015892,2]
[420361391,1776039038644,-179.43491486,0.00015892,2]
[420361393,1776039038660,-215.15403588,0.00015892,2]
[420361395,1776039038670,-666.0,0.00015892,2]
[420361397,1776039038680,-500.0,0.00015892,2]
[420361399,1776039038699,-500.0,0.00015892,2]
[420361401,1776039038709,-500.0,0.00015892,2]
[420361403,1776039038719,-258.73962788,0.00015892,2]
[420361405,1776039038728,-500.0,0.00015892,2]
[420361407,1776039038745,-500.0,0.00015892,2]
[420361409,1776039038756,-500.0,0.00015892,2]
[420361411,1776039038767,-153.0649219,0.00015892,2]
[420361413,1776039038779,-150.0,0.00015892,2]
[420361415,1776039038788,-500.0,0.00015892,2]
[420361417,1776039038797,-529.76,0.00015892,2]
[420361419,1776039038810,-500.0,0.00015892,2]
[420361421,1776039038823,-500.0,0.00015892,2]
[420361423,1776039038832,-500.0,0.00015892,2]
[420361425,1776039038845,-500.0,0.00015892,2]
[420361427,1776039038862,-500.0,0.00015892,2]
[420361429,1776039038872,-500.0,0.00015892,2]
[420361431,1776039038885,-150.0,0.00015892,2]
[420361433,1776039038905,-1181487.20395127,0.00015893,2]
[420361435,1776039038927,-996.13361999,0.00015893,2]
[420361438,1776039038968,-1331.50731239,0.00015893,2]
[420361441,1776039039023,-120117.13987505,0.00015893,2]
[420361443,1776039039036,-2187.60000001,0.00015893,2]
[420361619,1776039041852,-452.77341858,0.00015767,2]
[420361620,1776039041918,-4658.60289367,0.00015767,2]
[420361621,1776039041936,-53424.93569004,0.00015893,2]
[420361622,1776039041952,-394.07604548,0.00015893,2]
[420361783,1776039044242,-140061.40350577,0.00015893,2]
[420361785,1776039044259,-10200.0,0.000159,5]
[420361786,1776039044290,-22707.18600897,0.00015934,2]
[420361788,1776039044299,-27639.0,0.00015973,2]
[420361790,1776039044319,-500.0,0.00015973,2]
[420361792,1776039044331,-164.81263577,0.00015984,2]
[420361794,1776039044342,-500.0,0.00015992,2]
[420361796,1776039044356,-666.0,0.00015992,2]
[420361798,1776039044369,-35343.5996454,0.00015993,2]
[420361800,1776039044385,-34560.45589657,0.00015993,2]
[420361802,1776039044402,-400.00129797,0.00015993,2]
[420361813,1776039044573,-2590.96888089,0.00015993,2]
[420361816,1776039044589,-279.924521,0.00015993,2]
[420361883,1776039045703,-653.74439782,0.00015993,2]
[420361906,1776039046066,-14181.69435517,0.00015993,2]
[420361914,1776039046144,-445.3297252,0.00015993,2]
[420361919,1776039046202,-3485.83114502,0.00015993,2]
[420362060,1776040132529,150.0,1e-08,5]
[420362061,1776040132875,150.29973763,1e-08,7]
[420362062,1776040166328,-2303.39,0.00014982,2]
[420362063,1776040166393,-386.49,0.00015502,2]
[420362064,1776040166426,-960.03,0.00015507,2]
[420362065,1776040166473,-2153.622,0.00015575,2]
[420362066,1776040166549,-193.318,0.00015575,2]
[420362067,1776040166635,-2400.0,0.000157,5]
[420362068,1776040166759,-300.0,0.00015792,2]
[420362069,1776040166815,-5457.953,0.00015793,2]
[420362070,1776040166945,-645.9632,0.00015793,2]
[420362071,1776040166985,-4089.1010498,0.00015793,2]
[420362072,1776040167028,-466.39707187,0.000158,5]
[420362073,1776040227527,500.0,0.0003013,120]
[420362075,1776040232109,-258.11145954,0.00015174,2]
[420362076,1776040232143,-2595.90854046,0.00015793,2]
[420362077,1776040232157,-829.98709775,0.00015793,2]
[420362105,1776040238075,-1073.81750157,0.00015793,2]
[420362107,1776040238156,-3281.16297852,0.00015793,2]
[420362108,1776040238174,-370.98019902,0.00015793,2]
[420362109,1776040238187,-468.02389308,0.00015793,2]
[420362110,1776040238226,-4433.60292813,0.000158,5]
[420362111,1776040238247,-377.43928153,0.0001581,2]
[420362112,1776040238266,-200.0,0.00015872,2]
[420362113,1776040238277,-500.0,0.00015873,2]
[420362114,1776040238288,-200.0,0.00015883,2]
[420362115,1776040238307,-411.94800426,0.00015892,2]
[420362116,1776040238317,-523.49069605,0.00015892,2]
[420362117,1776040238329,-150.60782512,0.00015892,2]
[420362118,1776040238348,-150.0,0.00015892,2]
[420362119,1776040238371,-500.0,0.00015892,2]
[420362120,1776040238382,-596.65350979,0.00015892,2]
[420362121,1776040238393,-1270.0,0.00015893,5]
[420362122,1776040238414,-1288414.6607281,0.00015893,2]
[420362168,1776040240753,-189.85056446,0.00015883,2]
[420362169,1776040240769,-371.3793745,0.00015893,2]
[420362170,1776040240807,-9563.38671446,0.00015893,2]
[420362171,1776040240903,-513.39991625,0.00015893,2]
[420362179,1776040243393,-201137.17326669,0.00015893,2]
[420362180,1776040243409,-3129.973,0.00015893,2]
[420362182,1776040243428,-960.03,0.00015895,2]
[420362183,1776040243437,-17508.1558639,0.000159,2]
[420362184,1776040243448,-97138.85674289,0.000159,2]
[420362190,1776040245892,-709.59,0.000159,2]
[420362191,1776040245942,-2846.6834121,0.000159,2]
[420362192,1776040246338,-1376.27560063,0.000159,2]
[420362193,1776040246771,-547.460072,0.000159,2]
[420362198,1776041067576,160.0,0.000301,120]
[420362199,1776041068900,160.0,0.000301,120]
[420362200,1776041116414,159.0,0.000301,120]
[420362202,1776041248250,-150.0,0.0001388,2]
[420362203,1776041248288,-150.0,0.0001395,2]
[420362204,1776041248338,-55.60180967,0.0001395,2]
[420362205,1776041368128,-94.39819033,0.0001395,2]
[420362206,1776041368156,-150.0,0.0001402,2]
[420362207,1776041368191,-153.48180967,0.00014091,2]
[420362208,1776041372119,-13.17819033,0.00014091,2]
[420362209,1776041372147,-150.0,0.00014224,2]
[420362210,1776041372174,-150.0,0.00014294,2]
[420362211,1776041372211,-166.66,0.00014387,2]
[420362212,1776041372248,-150.0,0.00014498,2]
[420362213,1776041372273,-150.0,0.00014568,2]
[420362214,1776041372305,-500.0,0.00014627,2]
[420362215,1776041372335,-92.16180967,0.00014684,2]
[420362229,1776041433980,-74.49819033,0.00014684,2]
[420362230,1776041433990,-200.0,0.00014939,2]
[420362231,1776041434001,-166.66,0.00014981,2]
[420362232,1776041434011,-197.18234693,0.00015277,2]
[420362233,1776041434038,-5029.71765307,0.00015277,2]
[420362234,1776041434049,-166.66,0.00015277,2]
[420362235,1776041434058,-180.84104781,0.00015347,2]
[420362236,1776041434067,-743.50770149,0.00015347,2]
[420362237,1776041434076,-980.15948263,0.000155,2]
[420362238,1776041434089,-250.0,0.000155,2]
[420362239,1776041434102,-150.0,0.00015509,2]
[420362240,1776041434111,-160.57620522,0.00015509,2]
[420362241,1776041434120,-150.0,0.00015509,2]
[420362242,1776041434133,-200.0,0.00015509,2]
[420362243,1776041434149,-151.90728404,0.00015509,2]
[420362244,1776041434158,-150.0,0.00015509,2]
[420362245,1776041434175,-150.0,0.00015509,2]
[420362246,1776041434194,-150.0,0.00015509,2]
[420362247,1776041434205,-500.0,0.00015509,2]
[420362248,1776041434234,-150.0,0.00015509,2]
[420362249,1776041434243,-150.0,0.00015509,2]
[420362250,1776041434266,-500.0,0.00015509,2]
[420362251,1776041434284,-500.0,0.00015509,2]
[420362252,1776041434296,-228.55990011,0.00015509,2]
[420362253,1776041434327,-288.90238757,0.00015509,2]
[420362254,1776041434337,-500.0,0.00015573,2]
[420362255,1776041434356,-166.66,0.00015574,2]
[420362256,1776041434375,-218174.11549934,0.000156,2]
[420362257,1776041434404,-14800.31500066,0.000156,2]
[420362258,1776041434417,-723.17,0.00015618,2]
[420362259,1776041434434,-150.0,0.00015618,2]
[420362260,1776041434456,-150.0,0.00015618,2]
[420362261,1776041434468,-150.0,0.00015618,2]
[420362262,1776041434483,-500.25678155,0.00015673,2]
[420362263,1776041434498,-500.16517076,0.00015673,2]
[420362264,1776041434514,-500.0,0.00015673,2]
[420362265,1776041434530,-500.0,0.00015673,2]
[420362266,1776041434543,-174.61919141,0.00015691,2]
[420362267,1776041434556,-151.0,0.00015691,2]
[420362268,1776041434571,-170.0,0.00015691,2]
[420362269,1776041434581,-170.0,0.00015691,2]
[420362270,1776041434594,-251.02460973,0.00015691,2]
[420362271,1776041434609,-366.44348724,0.00015692,2]
[420362272,1776041434624,-203.20934113,0.00015692,2]
[420362273,1776041434638,-217.90673572,0.00015692,2]
[420362274,1776041434648,-500.0,0.00015692,2]
[420362275,1776041434657,-180.23060455,0.00015692,2]
[420362276,1776041434669,-187.88862537,0.00015692,2]
[420362277,1776041434687,-203.5405245,0.00015692,2]
[420362278,1776041434699,-251.72874195,0.00015692,2]
[420362279,1776041434716,-5000.0,0.00015693,2]
[420362280,1776041434731,-6491.85476589,0.00015693,2]
[420362281,1776041434746,-50235.47936235,0.00015693,2]
[420362282,1776041434779,-53229.74283285,0.00015693,2]
[420362283,1776041434860,-665.48313612,0.00015693,2]
[420362284,1776041434873,-72960.27580279,0.00015693,2]
[420362285,1776041434885,-158.0,0.000157,2]
[420362286,1776041434908,-158.0,0.000157,2]
[420362287,1776041434922,-4851.00572716,0.000157,2]
[420362288,1776041434931,-2100.0,0.000157,5]
[420362289,1776041434950,-151.0,0.00015746,2]
[420362290,1776041434959,-1722.898,0.00015773,2]
[420362291,1776041434980,-200.0,0.00015783,2]
[420362292,1776041434990,-500.0,0.00015783,2]
[420362293,1776041435000,-500.0,0.00015783,2]
[420362294,1776041435014,-500.0,0.00015783,2]
[420362295,1776041435023,-1235.18214925,0.00015783,2]
[420362296,1776041435037,-500.0,0.00015783,2]
[420362297,1776041435051,-500.0,0.00015783,2]
[420362298,1776041435062,-500.0,0.00015783,2]
[420362299,1776041435071,-500.0,0.00015783,2]
[420362300,1776041435090,-500.0,0.00015783,2]
[420362301,1776041435104,-500.0,0.00015783,2]
[420362302,1776041435113,-500.0,0.00015783,2]
[420362303,1776041435139,-500.0,0.00015783,2]
[420362304,1776041435150,-500.0,0.00015783,2]
[420362305,1776041435165,-500.0,0.00015783,2]
[420362306,1776041435179,-279.9045709,0.00015783,2]
[420362307,1776041435193,-500.0,0.00015792,2]
[420362308,1776041435204,-500.0,0.00015792,2]
[420362309,1776041435219,-500.0,0.00015792,2]
[420362310,1776041435232,-500.0,0.00015792,2]
[420362311,1776041435242,-500.0,0.00015792,2]
[420362312,1776041435257,-500.0,0.00015792,2]
[420362313,1776041435273,-500.0,0.00015792,2]
[420362314,1776041435284,-500.0,0.00015792,2]
[420362315,1776041435297,-500.0,0.00015792,2]
[420362316,1776041435308,-500.0,0.00015792,2]
[420362317,1776041435317,-500.0,0.00015792,2]
[420362318,1776041435328,-500.0,0.00015792,2]
[420362319,1776041435338,-369.44876802,0.00015792,2]
[420362320,1776041435347,-150.0,0.000158,2]
[420362321,1776041435359,-158.0,0.000158,2]
[420362322,1776041435370,-158.0,0.000158,2]
[420362323,1776041435381,-160.0,0.000158,2]
[420362324,1776041435390,-4200.0,0.000158,5]
[420362325,1776041435404,-151.0,0.00015801,2]
[420362326,1776041435414,-1000.0,0.0001584,2]
[420362327,1776041435425,-1000.0,0.0001584,2]
[420362328,1776041435759,-1000.0,0.0001584,2]
[420362329,1776041435774,-151.0,0.00015856,2]
[420362330,1776041435793,-1453.0,0.00015864,5]
[420362331,1776041435807,-1423.0,0.00015864,5]
[420362332,1776041435816,-3753.8005361,0.0001589,2]
[420362333,1776041435834,-160.7772064,0.00015891,2]
[420362334,1776041435846,-8350.722502,0.00015891,2]
[420362335,1776041435859,-500.0,0.00015892,2]
[420362336,1776041435872,-500.0,0.00015892,2]
[420362337,1776041435887,-500.0,0.00015892,2]
[420362338,1776041435902,-500.0,0.00015892,2]
[420362339,1776041435911,-500.0,0.00015892,2]
[420362340,1776041435940,-500.0,0.00015892,2]
[420362341,1776041435951,-500.0,0.00015892,2]
[420362342,1776041435973,-500.0,0.00015892,2]
[420362343,1776041435993,-194.37927344,0.00015892,2]
[420362344,1776041436009,-500.0,0.00015892,2]
[420362345,1776041436045,-500.0,0.00015892,2]
[420362346,1776041436078,-500.0,0.00015892,2]
[420362347,1776041436103,-500.0,0.00015892,2]
[420362348,1776041436122,-500.0,0.00015892,2]
[420362349,1776041436147,-500.0,0.00015892,2]
[420362350,1776041436160,-723.17,0.00015892,2]
[420362351,1776041436172,-500.0,0.00015892,2]
[420362352,1776041436194,-500.0,0.00015892,2]
[420362353,1776041436215,-500.0,0.00015892,2]
[420362354,1776041436235,-500.0,0.00015892,2]
[420362355,1776041436257,-500.0,0.00015892,2]
[420362356,1776041436269,-500.0,0.00015892,2]
[420362357,1776041436282,-700.0,0.00015895,2]
[420362358,1776041436303,-164.83,0.00015899,2]
[420362359,1776041436316,-500.0,0.00015899,2]
[420362360,1776041436325,-3411.5252506,0.000159,2]
[420362361,1776041436335,-609.09,0.000159,2]
[420362362,1776041436347,-2436.42,0.000159,2]
[420362363,1776041436360,-158.0,0.000159,2]
[420362364,1776041436369,-158.0,0.000159,2]
[420362365,1776041436381,-613.47162285,0.000159,2]
[420362366,1776041436396,-6300.0,0.000159,5]
[420362367,1776041436410,-7002.78850647,0.000159,2]
[420362368,1776041436420,-151.0,0.00015911,2]
[420362369,1776041436435,-151.0,0.00015966,2]
[420362370,1776041436446,-189.79112673,0.00015973,2]
[420362371,1776041436456,-173.72433466,0.00015984,2]
[420362372,1776041436471,-164.99885179,0.00015984,2]
[420362373,1776041436482,-500.0,0.00015992,2]
[420362374,1776041436493,-500.0,0.00015999,2]
[420362375,1776041436503,-33167.94826816,0.00016,2]
[420362376,1776041436538,-292.97700002,0.00016,2]
[420362377,1776041436758,-39.51131218,0.00016,2]
[420362382,1776041438286,-66810.03695679,0.00016,2]
[420362383,1776041438299,-20000.0,0.00016,2]
[420362384,1776041438321,-1000.0,0.00016,2]
[420362386,1776041438333,-1000.0,0.00016,2]
[420362388,1776041438345,-1000.0,0.00016,2]
[420362390,1776041438360,-306.73581142,0.00016,2]
[420362391,1776041438371,-151.0,0.00016021,2]
[420362392,1776041438383,-250.72028972,0.00016044,2]
[420362393,1776041438394,-155.21,0.00016048,2]
[420362394,1776041438410,-151.0,0.00016076,2]
[420362395,1776041438426,-160.0,0.00016085,2]
[420362396,1776041438444,-151.0,0.00016131,2]
[420362397,1776041438456,-723.17,0.00016166,2]
[420362398,1776041438479,-1000.0,0.00016221,2]
[420362399,1776041438495,-316.0,0.00016229,2]
[420362400,1776041438512,-316.0,0.00016273,2]
[420362401,1776041438533,-316.0,0.00016274,2]
[420362402,1776041438554,-316.0,0.00016278,2]
[420362403,1776041438570,-960.03,0.00016282,2]
[420362404,1776041438595,-316.0,0.00016319,2]
[420362405,1776041438624,-445.02135954,0.0001632,2]
[420362406,1776041438649,-247.49827768,0.0001632,2]
[420362407,1776041438667,-316.0,0.00016321,2]
[420362408,1776041438678,-166.58,0.00016346,2]
[420362409,1776041438707,-600.0,0.00016356,2]
[420362410,1776041438717,-1300.0,0.00016356,2]
[420362411,1776041438735,-309.37,0.00016366,2]
[420362412,1776041438753,-316.0,0.000164,2]
[420362413,1776041438762,-240.0,0.00016438,2]
[420362414,1776041438787,-723.17,0.0001644,2]
[420362415,1776041438798,-316.0,0.00016447,2]
[420362416,1776041438807,-316.0,0.00016469,2]
[420362417,1776041438823,-166.04,0.00016483,2]
[420362418,1776041438837,-250.0,0.00016499,2]
[420362419,1776041438846,-250.01,0.00016499,2]
[420362420,1776041438860,-316.0,0.00016525,2]
[420362421,1776041438879,-316.0,0.00016611,2]
[420362422,1776041438889,-316.0,0.00016613,2]
[420362423,1776041438899,-316.0,0.00016622,2]
[420362424,1776041438913,-316.0,0.00016625,2]
[420362425,1776041438927,-150.07717281,0.00016642,2]
[420362426,1776041438938,-418.49,0.00016658,2]
[420362427,1776041438949,-374.61893689,0.00016658,2]
[420362428,1776041438966,-1343.73963109,0.00016658,2]
[420362429,1776041438978,-185.66143202,0.00016658,2]
[420362430,1776041438993,-923.80732432,0.00016658,2]
[420362431,1776041439006,-844.41267568,0.00016658,2]
[420362432,1776041439022,-195.733249,0.00016658,2]
[420362433,1776041439032,-195.733249,0.00016658,2]
[420362434,1776041439042,-195.733249,0.00016658,2]
[420362435,1776041439054,-195.733249,0.00016658,2]
[420362436,1776041439070,-151.0,0.00016658,2]
[420362437,1776041439079,-153.30583,0.00016658,2]
[420362438,1776041439091,-151.0,0.00016658,2]
[420362439,1776041439100,-151.0,0.00016658,2]
[420362440,1776041439118,-316.0,0.00016659,2]
[420362441,1776041439127,-960.03,0.0001667,2]
[420362442,1776041439141,-1725.0,0.00016681,2]
[420362443,1776041439157,-723.17,0.00016714,2]
[420362444,1776041439166,-316.0,0.00016717,2]
[420362445,1776041439175,-316.0,0.00016745,2]
[420362446,1776041439188,-316.0,0.00016764,2]
[420362447,1776041439207,-395.56822006,0.00016768,2]
[420362448,1776041439223,-1104.43177994,0.00016768,2]
[420362449,1776041439232,-316.0,0.00016817,2]
[420362450,1776041439254,-182.20396178,0.00016895,2]
[420362451,1776041439272,-1093.72603822,0.00016895,2]
[420362452,1776041439298,-164.6019,0.000169,2]
[420362453,1776041439311,-158.0,0.000169,2]
[420362454,1776041439335,-1047.0,0.00016973,2]
[420362455,1776041439347,-1347.0,0.00016973,2]
[420362456,1776041439357,-3636.382,0.00016973,2]
[420362457,1776041439384,-1265.485,0.00016973,2]
[420362458,1776041439400,-2471.0,0.00016973,2]
[420362459,1776041439433,-6023.0,0.00016973,2]
[420362460,1776041439442,-723.17,0.00016988,2]
[420362461,1776041439460,-166.58,0.00016993,2]
[420362462,1776041439477,-514.0,0.00017,2]
[420362463,1776041439486,-960.03,0.00017058,2]
[420362464,1776041439497,-928.0,0.000171,2]
[420362465,1776041439517,-313.0,0.000171,2]
[420362466,1776041439526,-4851.00572709,0.0001711,2]
[420362467,1776041439536,-299.0,0.00017111,13]
[420362468,1776041439555,-155.21,0.00017194,2]
[420362469,1776041439567,-723.17,0.00017262,2]
[420362470,1776041439577,-1500.0,0.00017316,2]
[420362471,1776041439593,-2000.0,0.00017319,2]
[420362472,1776041439605,-519.58,0.00017332,2]
[420362473,1776041439615,-150.0,0.00017334,2]
[420362474,1776041439630,-150.0,0.00017336,2]
[420362475,1776041439640,-178.551485,0.00017337,2]
[420362476,1776041439653,-723.17654162,0.00017536,2]
[420362477,1776041439662,-282.05065796,0.0001764,2]
[420362478,1776041439678,-166.58,0.00017641,2]
[420362479,1776041439691,-500.0,0.00017725,2]
[420362480,1776041439701,-1300.0,0.00017726,7]
[420362481,1776041439715,-600.0,0.00017726,7]
[420362482,1776041439730,-309.37,0.00017736,2]
[420362483,1776041439742,-1000.0,0.00017773,2]
[420362484,1776041439751,-8400.0,0.000178,6]
[420362485,1776041439775,-1000.0,0.0001782,2]
[420362486,1776041439785,-1000.0,0.00017839,2]
[420362487,1776041439794,-499.25,0.00017849,2]
[420362488,1776041439828,-164.2194,0.0001788,2]
[420362489,1776041439837,-10600.0,0.000179,6]
[420362490,1776041439851,-1998.25372632,0.000179,2]
[420362491,1776041439864,-251.93980213,0.000179,2]
[420362492,1776041439874,-7237.55536908,0.000179,2]
[420362493,1776041439884,-247.32013268,0.000179,2]
[420362494,1776041439897,-837.5861147,0.00017909,2]
[420362495,1776041439908,-1863.2980492,0.0001791,2]
[420362496,1776041439919,-400.0,0.00017913,2]
[420362497,1776041439931,-761.2141755,0.0001794,2]
[420362498,1776041439943,-1000.0,0.00017955,2]
[420362499,1776041439955,-6805.0,0.00017973,2]
[420362500,1776041439966,-500.0,0.00017999,2]
[420362501,1776041439985,-500.0,0.00017999,2]
[420362502,1776041439995,-500.0,0.00017999,2]
[420362503,1776041440007,-500.0,0.00017999,2]
[420362504,1776041440024,-500.0,0.00017999,2]
[420362505,1776041440034,-500.0,0.00017999,2]
[420362506,1776041440046,-500.0,0.00017999,2]
[420362507,1776041440059,-500.0,0.00017999,2]
[420362508,1776041440074,-500.0,0.00017999,2]
[420362509,1776041440086,-500.0,0.00017999,2]
[420362510,1776041440096,-500.0,0.00017999,2]
[420362511,1776041440112,-939678.89605052,0.00018,2]
[420362512,1776041440125,-242277.4654876,0.00018,2]
[420362513,1776041440136,-250.0,0.00018,2]
[420362514,1776041440152,-150.0,0.00018,2]
[420362515,1776041440165,-10832.00902296,0.00018,2]
[420362516,1776041440179,-12470.88480116,0.00018,2]
[420362517,1776041440201,-6095.94453654,0.00018,2]
[420362518,1776041440219,-1220.97640381,0.00018,2]
[420362519,1776041440245,-22609.8981098,0.00018,2]